fUST/lending_fUST_20251220
["ID","MTS","AMOUNT","RATE_DAILY","PERIOD"]
[399264651,1766220889090,270.77,0.00011905,2]
[399264652,1766220954561,150.0,8.332e-05,2]
[399264653,1766220954661,150.0,8.729e-05,2]
[399264654,1766220955069,150.0,9.126e-05,2]
[399264655,1766220955514,150.0,9.522e-05,2]
[399264656,1766220955917,150.0,9.919e-05,2]
[399264657,1766220956374,150.0,0.00010316,2]
[399264658,1766220956848,169.23,0.00010713,2]
[399264659,1766220957264,193.41,0.0001111,2]
[399264660,1766220957870,217.58,0.00011506,2]
[399264661,1766220958123,241.76,0.00011903,2]
[399264662,1766220967121,500.0,0.00013273,2]
[399264663,1766221024357,150.0,8.359e-05,2]
[399264664,1766221024766,150.0,8.757e-05,2]
[399264665,1766221025180,150.0,9.155e-05,2]
[399264666,1766221025653,150.0,9.553e-05,2]
[399264667,1766221026091,150.0,9.951e-05,2]
[399264668,1766221026508,150.0,0.00010349,2]
[399264669,1766221026924,150.0,0.00010747,2]
[399264670,1766221027484,150.0,0.00011145,2]
[399264671,1766221092027,150.0,8.375e-05,2]
[399264672,1766221092438,146.89989833,8.774e-05,2]
[399264673,1766221092464,3.10010167,8.774e-05,2]
[399264674,1766221104514,500.71591428,0.00013273,2]
[399264675,1766221104926,172.20068467,0.00013273,2]
[399264676,1766221213388,500.0,0.00013273,2]
[399264677,1766221217665,501.03663679,0.00013273,2]
[399264678,1766221223128,500.0,0.00013273,2]
[399264679,1766221226983,500.0,0.00013273,2]
[399264680,1766221264341,500.39740459,0.00013273,2]
[399264681,1766221333110,363.27468135,0.00013273,2]
[399264682,1766221344666,500.0,0.00013273,2]
[399264683,1766221345420,500.0,0.00013273,2]
[399264684,1766221384969,500.0,0.00013273,2]
[399264685,1766221388051,500.0,0.00013273,2]
[399264686,1766221414917,150.0,0.00010203,2]
[399264687,1766221415323,150.0,0.00010689,2]
[399264688,1766221415727,150.0,0.00011175,2]
[399264689,1766221416378,150.0,0.0001166,2]
[399264690,1766221417396,150.0,0.00012146,2]
[399264691,1766221418228,171.91,0.00012632,2]
[399264692,1766221418398,200.56,0.00013118,2]
[399264694,1766221487687,150.0,0.00010191,2]
[399264695,1766221488159,150.0,0.00010676,2]
[399264696,1766221488571,150.0,0.00011162,2]
[399264697,1766221489008,150.0,0.00011647,2]
[399264698,1766221489411,150.0,0.00012132,2]
[399264699,1766221490305,150.0,0.00012618,2]
[399264700,1766221490899,167.38,0.00013103,2]
[399264701,1766221505307,2269.43457665,0.0001351,2]
[399264702,1766221505330,30.96013484,0.0001351,2]
[399264705,1766221558340,150.0,0.00010211,2]
[399264706,1766221558820,150.0,0.00010697,2]
[399264707,1766221559259,170.47,0.00011183,2]
[399264708,1766221559712,227.3,0.00011669,2]
[399264709,1766221560096,284.12,0.00012156,2]
[399264710,1766221560486,340.95,0.00012642,2]
[399264711,1766221560994,397.77,0.00013128,2]
[399264712,1766221566849,500.46508381,0.00013273,2]
[399264714,1766221605093,1009.28280081,0.0001351,2]
[399264715,1766221636149,150.0,0.00010235,2]
[399264716,1766221636903,150.0,0.00010722,2]
[399264717,1766221637353,197.77,0.0001121,2]
[399264718,1766221637738,263.7,0.00011697,2]
[399264719,1766221638227,329.62,0.00012184,2]
[399264720,1766221638736,395.55,0.00012672,2]
[399264721,1766221639448,461.47,0.00013159,2]
[399264723,1766221715066,150.0,8.444e-05,2]
[399264724,1766221715508,159.76,8.846e-05,2]
[399264725,1766221716162,239.64,9.248e-05,2]
[399264726,1766221716556,319.52,9.65e-05,2]
[399264727,1766221716961,399.4,0.00010052,2]
[399264728,1766221717450,479.28,0.00010454,2]
[399264729,1766221717872,559.16,0.00010856,2]
[399264730,1766221718304,639.04,0.00011258,2]
[399264731,1766221718731,718.91,0.0001166,2]
[399264732,1766221719194,798.79,0.00012062,2]
[399264733,1766221790113,150.0,8.437e-05,2]
[399264734,1766221790823,150.0,8.839e-05,2]
[399264735,1766221791227,27.08198054,9.24e-05,2]
[399264736,1766221791254,156.28801946,9.24e-05,2]
[399264737,1766221791678,244.49,9.642e-05,2]
[399264738,1766221792099,305.61,0.00010044,2]
[399264739,1766221792523,366.73,0.00010446,2]
[399264740,1766221792939,427.86,0.00010847,2]
[399264741,1766221793374,488.98,0.00011249,2]
[399264742,1766221793936,550.1,0.00011651,2]
[399264743,1766221794228,611.22,0.00012053,2]
[399264744,1766221816835,5000.0,0.0001351,2]
[399264759,1766221832161,-1200.0,0.00013698,2]
[399264760,1766221832171,-274.28135078,0.00013698,2]
[399264794,1766221838231,-340.71864922,0.00013698,2]
[399264796,1766221838242,-298.2,0.00013699,2]
[399264798,1766221838252,-156.15183963,0.00013699,2]
[399264801,1766221838261,-158.2,0.00013699,2]
[399264804,1766221838273,-158.2,0.00013699,2]
[399264807,1766221838283,-10.18025305,0.00013699,2]
[399265029,1766221840329,-148.01974695,0.00013699,2]
[399265032,1766221840343,-158.2,0.00013699,2]
[399265034,1766221840358,-158.2,0.00013699,2]
[399265037,1766221840371,-160.0,0.00013699,2]
[399265039,1766221840386,-158.2,0.00013699,2]
[399265042,1766221840400,-160.0,0.00013699,2]
[399265045,1766221840414,-158.2,0.00013699,2]
[399265047,1766221840428,-158.2,0.00013699,2]
[399265050,1766221840442,-365.04495749,0.00013831,2]
[399265052,1766221840455,-1200.0,0.00015067,2]
[399265055,1766221840470,-57.44291248,0.00015067,2]
[399265116,1766221841032,1848.73198054,0.0001351,2]
[399265122,1766221841076,1014.51812106,0.0001351,2]
[399265320,1766221843236,-1962.35514931,0.00015067,2]
[399265321,1766221843256,-282.18950214,0.00015656,7]
[399265322,1766221843265,-300.0,0.00015829,2]
[399265323,1766221843274,-300.0,0.0001583,2]
[399265324,1766221843283,-300.0,0.0001583,2]
[399265325,1766221843292,-430.75304984,0.00015831,2]
[399265326,1766221843302,-252.0,0.00015877,2]
[399265327,1766221843311,-1200.0,0.00015878,2]
[399265328,1766221843320,-165.534583,0.00016293,2]
[399265329,1766221843329,-1617.11255548,0.00016329,2]
[399265330,1766221843338,-274.3409194,0.00016949,2]
[399265331,1766221843347,-500.0,0.00016949,2]
[399265333,1766221843356,-500.0,0.00016949,2]
[399265334,1766221843365,-184.76578047,0.00016949,2]
[399265335,1766221843375,-500.0,0.00016949,2]
[399265337,1766221843384,-500.0,0.00016949,2]
[399265339,1766221843394,-500.0,0.00016949,2]
[399265341,1766221843404,-499.54535625,0.00016949,2]
[399265343,1766221843413,-500.0,0.00016949,2]
[399265344,1766221843423,-436.6,0.00016949,2]
[399265345,1766221843432,-500.0,0.00016949,2]
[399265346,1766221843441,-500.0,0.00016949,2]
[399265347,1766221843450,-500.0,0.00016949,2]
[399265348,1766221843459,-849.62655372,0.0001695,2]
[399265582,1766221865359,150.0,0.00010189,2]
[399265583,1766221865768,150.0,0.00010674,2]
[399265584,1766221866177,150.0,0.0001116,2]
[399265585,1766221866634,150.0,0.00011645,2]
[399265586,1766221867124,157.8,0.0001213,2]
[399265587,1766221867459,189.36,0.00012615,2]
[399265588,1766221867949,220.92,0.000131,2]
[399265589,1766221937388,150.0,8.364e-05,2]
[399265590,1766221937828,150.0,8.762e-05,2]
[399265591,1766221938429,150.0,9.16e-05,2]
[399265592,1766221938843,150.0,9.559e-05,2]
[399265593,1766221939257,150.0,9.957e-05,2]
[399265594,1766221939737,150.0,0.00010355,2]
[399265595,1766221940608,150.0,0.00010754,2]
[399265596,1766221941493,150.0,0.00011152,2]
[399265597,1766221945928,500.0,0.00013273,2]
[399265598,1766221947103,500.0,0.00013273,2]
[399265599,1766222005713,150.0,0.00010163,2]
[399265600,1766222006134,150.0,0.00010647,2]
[399265601,1766222006555,150.0,0.00011131,2]
[399265602,1766222006972,150.0,0.00011615,2]
[399265603,1766222007427,150.0,0.00012099,2]
[399265604,1766222008460,150.0,0.00012583,2]
[399265605,1766222050591,4717.41187894,0.0001351,2]
[399265606,1766222050626,282.58812106,0.0001351,2]
[399265607,1766222062265,500.0,0.00013273,2]
[399265608,1766222063896,500.0,0.00013273,2]
[399265609,1766222064327,500.0,0.00013273,2]
[399265610,1766222072915,150.0,0.00010189,2]
[399265611,1766222073348,150.0,0.00010675,2]
[399265612,1766222073726,150.0,0.0001116,2]
[399265613,1766222074163,150.0,0.00011645,2]
[399265614,1766222074192,2953.12970763,0.0001351,2]
[399265615,1766222074562,150.0,0.0001213,2]
[399265616,1766222075618,150.0,0.00012615,2]
[399265617,1766222075920,155.36,0.00013101,2]
[399265618,1766222108864,500.0,0.00013273,2]
[399265621,1766222144254,150.0,8.377e-05,2]
[399265622,1766222144573,150.0,8.776e-05,2]
[399265623,1766222145286,150.0,9.175e-05,2]
[399265624,1766222145539,150.0,9.573e-05,2]
[399265630,1766222188618,237.562,0.00013273,2]
[399265633,1766222952373,825.0,0.000135,2]
[399265637,1766223018392,500.0,0.00013425,2]
[399265675,1766223032204,-500.0,0.00013562,2]
[399265677,1766223032214,-1790.04735975,0.00013596,2]
[399265678,1766223032223,-186.42762168,0.00013596,2]
[399265679,1766223032232,-613.0,0.00013596,2]
[399265680,1766223032243,-290.17314436,0.00013598,2]
[399265681,1766223032253,-82.47843721,0.00013647,2]
[399265682,1766223032275,-281.80562113,0.00013647,2]
[399265683,1766223032285,-300.0,0.00013695,2]
[399265684,1766223032295,-300.0,0.00013695,2]
[399265685,1766223032304,-252.0,0.00013695,2]
[399265686,1766223032313,-533.97061817,0.00013695,2]
[399265751,1766223039106,-666.02938183,0.00013695,2]
[399265753,1766223039116,-300.0,0.00013695,2]
[399265755,1766223039126,-500.0,0.00013696,2]
[399265757,1766223039136,-500.0,0.00013696,2]
[399265759,1766223039145,-500.0,0.00013696,2]
[399265761,1766223039156,-500.0,0.00013696,2]
[399265762,1766223039165,-184.76578047,0.00013696,2]
[399265764,1766223039175,-500.0,0.00013696,2]
[399265766,1766223039184,-500.0,0.00013696,2]
[399265768,1766223039194,-500.0,0.00013696,2]
[399265770,1766223039204,-500.0,0.00013696,2]
[399265772,1766223039213,-500.0,0.00013696,2]
[399265774,1766223039224,-500.0,0.00013696,2]
[399265775,1766223039233,-500.0,0.00013696,2]
[399265777,1766223039243,-500.0,0.00013696,2]
[399265779,1766223039252,-500.0,0.00013696,2]
[399265781,1766223039261,-500.0,0.00013696,2]
[399265783,1766223039272,-500.0,0.00013696,2]
[399265785,1766223039281,-500.0,0.00013696,2]
[399265787,1766223039290,-500.0,0.00013696,2]
[399265789,1766223039299,-500.0,0.00013696,2]
[399265790,1766223039308,-500.0,0.00013696,2]
[399265792,1766223039317,-500.0,0.00013696,2]
[399265794,1766223039327,-500.0,0.00013696,2]
[399265796,1766223039336,-500.0,0.00013696,2]
[399265798,1766223039346,-500.0,0.00013696,2]
[399265799,1766223039355,-500.0,0.00013696,2]
[399265801,1766223039365,-500.0,0.00013696,2]
[399265803,1766223039374,-500.0,0.00013696,2]
[399265805,1766223039386,-500.0,0.00013696,2]
[399265807,1766223039395,-500.0,0.00013696,2]
[399265809,1766223039404,-285.68936259,0.00013696,2]
[399265811,1766223039414,-500.0,0.00013696,2]
[399265813,1766223039423,-500.0,0.00013696,2]
[399265815,1766223039432,-500.0,0.00013696,2]
[399265816,1766223039442,-500.0,0.00013696,2]
[399265818,1766223039452,-500.0,0.00013696,2]
[399265820,1766223039461,-500.0,0.00013696,2]
[399265822,1766223039470,-500.0,0.00013696,2]
[399265823,1766223039479,-500.0,0.00013696,2]
[399265825,1766223039488,-500.0,0.00013696,2]
[399265827,1766223039497,-500.0,0.00013696,2]
[399265829,1766223039507,-500.0,0.00013696,2]
[399265831,1766223039517,-500.0,0.00013696,2]
[399265833,1766223039526,-500.0,0.00013696,2]
[399265834,1766223039535,-500.0,0.00013696,2]
[399265836,1766223039545,-500.0,0.00013696,2]
[399265838,1766223039554,-500.0,0.00013696,2]
[399265840,1766223039564,-500.0,0.00013696,2]
[399265842,1766223039573,-500.0,0.00013696,2]
[399265844,1766223039582,-500.0,0.00013696,2]
[399265846,1766223039591,-500.0,0.00013696,2]
[399265847,1766223039600,-500.0,0.00013696,2]
[399265849,1766223039610,-500.0,0.00013696,2]
[399265851,1766223039619,-500.0,0.00013696,2]
[399265853,1766223039628,-500.0,0.00013696,2]
[399265855,1766223039637,-500.0,0.00013696,2]
[399265856,1766223039646,-500.0,0.00013696,2]
[399265858,1766223039654,-500.0,0.00013696,2]
[399265860,1766223039664,-500.0,0.00013696,2]
[399265862,1766223039673,-500.0,0.00013696,2]
[399265864,1766223039683,-405.0966307,0.00013696,2]
[399265866,1766223039692,-500.0,0.00013696,2]
[399265868,1766223039702,-500.0,0.00013696,2]
[399265870,1766223039711,-1200.0,0.00013696,2]
[399265871,1766223039720,-500.0,0.00013697,2]
[399265873,1766223039730,-211.18713128,0.00013697,2]
[399265875,1766223039739,-25105.43224239,0.00013697,2]
[399265878,1766223039755,-415.64417249,0.00013697,2]
[399265880,1766223039766,-2790.2516653,0.00013697,2]
[399265883,1766223039784,-5745.74079194,0.00013697,2]
[399265885,1766223039795,-2555.7276687,0.00013697,2]
[399265887,1766223039806,-2205.57448355,0.00013697,2]
[399265889,1766223039817,-2114.21407203,0.00013697,2]
[399265890,1766223039827,-1748.29487563,0.00013697,2]
[399265892,1766223039838,-482.24165179,0.00013697,2]
[399265924,1766223040609,-717.828,0.00013697,2]
[399265926,1766223040627,-727.71476658,0.00013697,2]
[399265931,1766223040666,-500.0,0.00013697,2]
[399266312,1766223044386,-4269.70048821,0.00013697,2]
[399266314,1766223044396,-207.677158,0.00013698,2]
[399266316,1766223044405,-207.677158,0.00013698,2]
[399266318,1766223044414,-207.677158,0.00013698,2]
[399266320,1766223044424,-207.677158,0.00013698,2]
[399266322,1766223044433,-207.677158,0.00013698,2]
[399266324,1766223044442,-207.677158,0.00013698,2]
[399266326,1766223044452,-207.677158,0.00013698,2]
[399266328,1766223044465,-207.677158,0.00013698,2]
[399266330,1766223044474,-207.677158,0.00013698,2]
[399266332,1766223044484,-207.677158,0.00013698,2]
[399266333,1766223044497,-207.677158,0.00013698,2]
[399266335,1766223044507,-207.677158,0.00013698,2]
[399266337,1766223044516,-207.677158,0.00013698,2]
[399266339,1766223044525,-207.677158,0.00013698,2]
[399266341,1766223044533,-207.677158,0.00013698,2]
[399266343,1766223044542,-207.677158,0.00013698,2]
[399266345,1766223044551,-207.677158,0.00013698,2]
[399266347,1766223044560,-207.677158,0.00013698,2]
[399266349,1766223044569,-207.677158,0.00013698,2]
[399266351,1766223044578,-207.677152,0.00013698,2]
[399266353,1766223044587,-849.026784,0.00013699,2]
[399266355,1766223044596,-151.0,0.00013699,2]
[399266357,1766223044605,-158.2,0.00013699,2]
[399266359,1766223044614,-500.0,0.00013699,2]
[399266361,1766223044623,-160.0,0.00013699,2]
[399266363,1766223044632,-158.0,0.00013699,2]
[399266364,1766223044641,-158.0,0.00013699,2]
[399266366,1766223044650,-158.2,0.00013699,2]
[399266368,1766223044660,-188.2,0.00013699,2]
[399266370,1766223044669,-160.0,0.00013699,2]
[399266372,1766223044678,-500.0,0.00013699,2]
[399266374,1766223044688,-287.330108,0.00013699,2]
[399266376,1766223044697,-500.0,0.00013836,2]
[399266378,1766223044706,-500.0,0.00013973,2]
[399266380,1766223044716,-500.0,0.0001411,2]
[399266382,1766223044725,-630.0,0.00014247,2]
[399266384,1766223044735,-500.0,0.00014247,2]
[399266386,1766223044743,-500.0,0.00014384,2]
[399266388,1766223044752,-500.0,0.00014521,2]
[399266390,1766223044761,-500.0,0.00014658,2]
[399266392,1766223044771,-12413.15104389,0.00014765,2]
[399266394,1766223044780,-500.0,0.00014795,2]
[399266396,1766223044789,-500.0,0.00014932,2]
[399266398,1766223044798,-420.0,0.00015008,2]
[399266400,1766223044807,-1680.0,0.00015009,2]
[399266402,1766223044816,-151.000008,0.0001501,2]
[399266404,1766223044825,-238.222,0.0001501,2]
[399266406,1766223044834,-575.0,0.00015064,2]
[399266408,1766223044844,-300.20421406,0.00015069,2]
[399266410,1766223044853,-290.17314435,0.00015174,2]
[399266412,1766223044862,-475.0,0.00015205,2]
[399266414,1766223044871,-475.0,0.00015205,2]
[399266416,1766223044880,-475.0,0.00015205,2]
[399266417,1766223044889,-475.0,0.00015205,2]
[399266419,1766223044898,-475.0,0.00015205,2]
[399266421,1766223044907,-475.0,0.00015205,2]
[399266423,1766223044916,-475.0,0.00015205,2]
[399266425,1766223044925,-475.0,0.00015205,2]
[399266427,1766223044934,-475.0,0.00015205,2]
[399266429,1766223044943,-475.0,0.00015205,2]
[399266431,1766223044952,-475.0,0.00015205,2]
[399266433,1766223044961,-475.0,0.00015205,2]
[399266435,1766223044970,-475.0,0.00015205,2]
[399266436,1766223044979,-475.0,0.00015205,2]
[399266439,1766223044993,-475.0,0.00015205,2]
[399266440,1766223045004,-282.18950214,0.00015638,7]
[399266442,1766223045013,-429.85518884,0.00015647,2]
[399266444,1766223045022,-500.0,0.00015657,2]
[399266446,1766223045031,-151.0,0.00015698,2]
[399266448,1766223045040,-241.90850825,0.00015752,2]
[399266450,1766223045049,-500.0,0.00015794,2]
[399266452,1766223045058,-500.0,0.00015931,2]
[399266454,1766223045068,-710.5421408,0.00015932,2]
[399266456,1766223045077,-1617.11255548,0.00016003,2]
[399266458,1766223045085,-574.12855637,0.00016003,2]
[399266460,1766223045095,-500.0,0.00016003,2]
[399266462,1766223045104,-500.0,0.00016003,2]
[399266464,1766223045113,-500.0,0.00016003,2]
[399266478,1766223045123,-500.0,0.00016003,2]
[399266480,1766223045247,-500.0,0.00016003,2]
[399266482,1766223045256,-160.35970921,0.00016003,2]
[399266484,1766223045265,-500.0,0.00016003,2]
[399266486,1766223045275,-500.0,0.00016003,2]
[399266488,1766223045284,-500.0,0.00016003,2]
[399266490,1766223045294,-500.0,0.00016003,2]
[399266492,1766223045303,-496.84342866,0.00016003,2]
[399266494,1766223045315,-3.15657134,0.00016003,2]
[399266496,1766223045324,-500.0,0.00016003,2]
[399266498,1766223045335,-600.22796115,0.00016065,2]
[399266500,1766223045345,-500.0,0.00016068,2]
[399266502,1766223045354,-500.0,0.00016205,2]
[399266504,1766223045364,-500.0,0.00016342,2]
[399266506,1766223045373,-500.0,0.00016351,2]
[399266508,1766223045386,-500.0,0.00016351,2]
[399266510,1766223045395,-150.0,0.00016351,2]
[399266512,1766223045404,-210.40484787,0.00016351,2]
[399266513,1766223045413,-500.0,0.00016351,2]
[399266515,1766223045423,-500.0,0.00016351,2]
[399266517,1766223045431,-150.0,0.00016351,2]
[399266519,1766223045440,-150.0,0.00016351,2]
[399266522,1766223045456,-209.96695028,0.00016351,2]
[399266524,1766223045465,-500.0,0.00016351,2]
[399266526,1766223045474,-500.0,0.00016351,2]
[399266527,1766223045483,-204.54034564,0.00016351,2]
[399266529,1766223045492,-261.21250228,0.00016351,2]
[399266531,1766223045502,-150.0,0.00016351,2]
[399266533,1766223045511,-150.0,0.00016351,2]
[399266535,1766223045521,-268.53940321,0.00016438,2]
[399266538,1766223045534,-406.59059679,0.00016438,2]
[399266540,1766223045543,-135.81940321,0.00016438,2]
[399266632,1766223046543,-539.31059679,0.00016438,2]
[399266634,1766223046558,-675.13,0.00016438,2]
[399266637,1766223046572,-675.13,0.00016438,2]
[399266639,1766223046587,-675.13,0.00016438,2]
[399266642,1766223046603,-675.13,0.00016438,2]
[399266645,1766223046616,-151.0,0.00016438,2]
[399266647,1766223046631,-151.0,0.00016438,2]
[399266650,1766223046646,-151.0,0.00016438,2]
[399266652,1766223046660,-151.0,0.00016438,2]
[399266655,1766223046674,-1985.8729704,0.00016447,2]
[399266658,1766223046689,-587.0,0.00016447,2]
[399266660,1766223046705,-2351.0,0.00016448,2]
[399266662,1766223046728,-500.0,0.00016479,2]
[399266665,1766223046745,-500.0,0.00016488,2]
[399266668,1766223046760,-500.0,0.00016488,2]
[399266670,1766223046775,-150.0,0.00016488,2]
[399266673,1766223046789,-500.0,0.00016488,2]
[399266675,1766223046804,-520.28953315,0.00016488,2]
[399266678,1766223046818,-150.0,0.00016488,2]
[399266680,1766223046832,-150.0,0.00016488,2]
[399266683,1766223046846,-500.0,0.00016488,2]
[399266685,1766223046861,-500.0,0.00016488,2]
[399266688,1766223046876,-158.21046634,0.00016488,2]
[399266690,1766223046889,-150.0,0.00016488,2]
[399266693,1766223046904,-595.37131296,0.00016551,2]
[399266695,1766223046930,-2352.58182887,0.00016586,2]
[399266698,1766223046955,-500.0,0.00016616,2]
[399266700,1766223046971,-500.0,0.00016625,2]
[399266703,1766223046987,-500.0,0.00016625,2]
[399266705,1766223047001,-150.0,0.00016625,2]
[399266708,1766223047016,-500.0,0.00016625,2]
[399266710,1766223047030,-150.0,0.00016625,2]
[399266713,1766223047044,-209.81345117,0.00016625,2]
[399266715,1766223047059,-500.0,0.00016625,2]
[399266718,1766223047073,-500.0,0.00016625,2]
[399266720,1766223047088,-150.0,0.00016625,2]
[399266723,1766223047103,-151.0,0.00016625,2]
[399266725,1766223047118,-151.0,0.00016625,2]
[399266728,1766223047132,-160.0,0.00016688,2]
[399266731,1766223047146,-1925.99006349,0.00016691,2]
[399266733,1766223047161,-290.17314435,0.00016749,2]
[399266736,1766223047182,-500.0,0.00016753,2]
[399266738,1766223047197,-500.0,0.00016762,2]
[399266741,1766223047212,-500.0,0.00016762,2]
[399266743,1766223047227,-150.0,0.00016762,2]
[399266746,1766223047241,-500.0,0.00016762,2]
[399266749,1766223047257,-170.76623623,0.00016762,2]
[399266751,1766223047272,-500.0,0.00016762,2]
[399266754,1766223047287,-500.0,0.00016762,2]
[399266757,1766223047301,-157.17769127,0.00016762,2]
[399266759,1766223047316,-853.46564111,0.00016871,2]
[399266762,1766223047331,-500.0,0.0001689,2]
[399266764,1766223047344,-675.13,0.00016898,2]
[399266767,1766223047359,-647.05014813,0.00016899,2]
[399266769,1766223047374,-500.0,0.00016899,2]
[399266772,1766223047396,-150.0,0.00016899,2]
[399266774,1766223047410,-500.0,0.00016899,2]
[399266793,1766223047578,-500.0,0.00016899,2]
[399266795,1766223047588,-500.0,0.00016899,2]
[399266797,1766223047598,-151.0,0.00016949,2]
[399266800,1766223047607,-155.658401,0.00016949,2]
[399266801,1766223047617,-208.57593904,0.00016949,2]
[399266803,1766223047626,-375.06125358,0.00016949,2]
[399266806,1766223047636,-406.86544549,0.00016949,2]
[399266807,1766223047645,-166.23897621,0.00016949,2]
[399266810,1766223047654,-664.95590484,0.00016949,2]
[399266812,1766223047664,-1494.6546351,0.00016949,2]
[399266814,1766223047673,-500.0,0.00017027,2]
[399266816,1766223047683,-500.0,0.00017036,2]
[399266818,1766223047692,-250.0,0.00017036,2]
[399266820,1766223047701,-455.32460062,0.00017036,2]
[399266822,1766223047710,-332.0298651,0.00017036,2]
[399266824,1766223047719,-500.0,0.00017036,2]
[399266826,1766223047728,-675.13,0.00017049,2]
[399266828,1766223047738,-3443.1469321,0.0001705,2]
[399266830,1766223047750,-11886.8473304,0.0001705,2]
[399266832,1766223047759,-4952.5147147,0.0001705,2]
[399266834,1766223047768,-617.40005154,0.00017099,2]
[399266836,1766223047777,-500.0,0.00017164,2]
[399266838,1766223047787,-327.95916603,0.00017173,2]
[399266840,1766223047798,-172.04083397,0.00017173,2]
[399266842,1766223047807,-500.0,0.00017173,2]
[399266844,1766223047816,-151.0,0.00017207,2]
[399266846,1766223047826,-260.0,0.00017235,2]
[399266848,1766223047835,-355.67916603,0.00017301,2]
[399266998,1766223049222,-144.32083397,0.00017301,2]
[399267000,1766223049231,-500.0,0.0001731,2]
[399267002,1766223049241,-500.0,0.0001731,2]
[399267004,1766223049251,-383.0,0.00017362,2]
[399267006,1766223049260,-383.0,0.00017389,2]
[399267008,1766223049269,-225.50050397,0.00017438,2]
[399267010,1766223049279,-342.09516242,0.00017447,2]
[399267012,1766223049291,-157.90483758,0.00017447,2]
[399267014,1766223049300,-294.69998001,0.00017447,2]
[399267646,1766223462897,820.3,0.0001351,2]
[399267647,1766224124472,300.0,0.00013859,120]
[399267648,1766224126172,300.0,0.00013859,120]
[399267649,1766224127889,293.16,0.00013859,120]
[399267650,1766224173999,806.57172589,0.00015071,120]
[399267850,1766224238537,-238.0,0.00013699,2]
[399267853,1766224238547,-160.0,0.00013699,2]
[399267855,1766224238556,-0.40358852,0.00013699,2]
[399268064,1766224240731,-389.37945144,0.00013699,2]
[399268066,1766224240740,-615.0,0.00013699,2]
[399268068,1766224240750,-300.0,0.00014247,3]
[399268070,1766224240758,-300.0,0.00015068,3]
[399268072,1766224240769,-165.534583,0.00015182,2]
[399268074,1766224240779,-181.04589415,0.000153,2]
[399268076,1766224240788,-167.75703097,0.000153,2]
[399268078,1766224240797,-459.94398715,0.00015699,2]
[399268080,1766224240806,-267.16301158,0.00015753,7]
[399268082,1766224240816,-150.1,0.00016438,2]
[399268084,1766224240826,-1038.40991091,0.00016576,2]
[399268086,1766224240835,-193.4487629,0.00016665,2]
[399268088,1766224240843,-1566.29143979,0.00016665,2]
[399268090,1766224240853,-899.92574788,0.00016751,2]
[399268367,1766224243707,-1000.0,0.00016751,2]
[399268369,1766224243719,-206.07425212,0.00016751,2]
[399268371,1766224243728,-897.0,0.00016751,2]
[399268373,1766224243738,-151.0,0.00016754,2]
[399268375,1766224243747,-574.12855637,0.00016754,2]